fUST/lending_fUST_20251127
["ID","MTS","AMOUNT","RATE_DAILY","PERIOD"]
[394943055,1764179439271,-160.0,0.00015214,2]
[394943056,1764179439280,-1000.0,0.00016,2]
[394943057,1764179439290,-1030.76,0.00016437,2]
[394943058,1764179439299,-198.51006965,0.00016438,2]
[394943059,1764179439309,-1000.0,0.00016551,2]
[394943060,1764179439319,-244.0,0.00016551,2]
[394943061,1764179439328,-151.0,0.000167,2]
[394943062,1764179439338,-196.37108562,0.00016966,2]
[394943063,1764179439349,-231.0,0.00017076,2]
[394943064,1764179439358,-414.0,0.000179,2]
[394943065,1764179439368,-1000.0,0.00018206,2]
[394943066,1764179439378,-492.0,0.00018206,2]
[394943067,1764179439388,-151.0,0.000186,2]
[394943068,1764179439398,-162.26490448,0.00019071,2]
[394943069,1764179439407,-258.0,0.00019076,2]
[394943070,1764179439417,-1000.0,0.00020026,10]
[394943071,1764179439426,-791.0,0.00020026,10]
[394943072,1764179439436,-151.0,0.000205,3]
[394943073,1764179439446,-414.0,0.000209,2]
[394943074,1764179439455,-4342.75671928,0.00021,2]
[394943075,1764179439465,-500.0,0.00021602,2]
[394943076,1764179439474,-1316.0,0.00021918,7]
[394943077,1764179439484,-601.7,0.00022,7]
[394943078,1764179439493,-280.75,0.00022,14]
[394943079,1764179439503,-1030.76,0.00022023,2]
[394943080,1764179439512,-4952.45,0.00022024,2]
[394943081,1764179439522,-1000.0,0.00022029,10]
[394943082,1764179439531,-1000.0,0.00022029,10]
[394943083,1764179439541,-151.0,0.000224,9]
[394943084,1764179439550,-1000.0,0.00022515,30]
[394943085,1764179439559,-500.0,0.00022655,2]
[394943086,1764179439569,-500.0,0.00022984,2]
[394943087,1764179439578,-169.8831568,0.00023579,2]
[394943088,1764179439588,-179.0,0.00023808,11]
[394943089,1764179439598,-414.0,0.000239,2]
[394943090,1764179439608,-1000.0,0.00024232,10]
[394943091,1764179439623,-1000.0,0.00024232,10]
[394943092,1764179439632,-579.0,0.00024232,10]
[394943093,1764179439641,-151.0,0.000243,9]
[394943094,1764179439654,-5000.0,0.00024624,2]
[394943095,1764179439667,-323.7427198,0.00024658,2]
[394943096,1764179439677,-1000.0,0.00024754,3]
[394943097,1764179439688,-1030.76,0.00024799,2]
[394943098,1764179439698,-1000.0,0.00024799,3]
[394943099,1764179439707,-1030.76,0.00024899,2]
[394943100,1764179439717,-451.85761487,0.000249,2]
[394943101,1764179439726,-500.0,0.000249,2]
[394943102,1764179439736,-280.75,0.000253,14]
[394943103,1764179439747,-1000.0,0.00025448,2]
[394943105,1764179439756,-500.0,0.00025973,2]
[394943106,1764179439765,-500.0,0.00025973,2]
[394943107,1764179439775,-500.0,0.00025973,2]
[394943108,1764179439785,-500.0,0.00025973,2]
[394943109,1764179439794,-500.0,0.00025973,2]
[394943110,1764179439804,-500.0,0.00025973,2]
[394943111,1764179439815,-500.0,0.00025973,2]
[394943112,1764179439824,-500.0,0.00025973,2]
[394943113,1764179439835,-151.0,0.0002599,7]
[394943114,1764179439845,-1500.0,0.00025996,2]
[394943116,1764179439855,-1030.76,0.00026079,2]
[394943117,1764179439865,-151.0,0.000262,12]
[394943119,1764179439874,-166.691,0.000262,12]
[394943121,1764179439884,-1000.0,0.00026399,3]
[394943123,1764179439893,-1000.0,0.00026521,2]
[394943124,1764179439902,-1000.0,0.00026521,2]
[394943125,1764179439912,-1000.0,0.00026521,2]
[394943126,1764179439922,-1000.0,0.00026521,2]
[394943127,1764179439933,-500.0,0.00026521,2]
[394943128,1764179439943,-2000.0,0.00026544,2]
[394943129,1764179439952,-1000.0,0.00026655,30]
[394943130,1764179439963,-1000.0,0.00026655,30]
[394943131,1764179439972,-349.0,0.00026655,30]
[394943132,1764179439981,-414.0,0.000269,2]
[394943133,1764179439990,-1030.76,0.0002698,2]
[394943136,1764179440163,-1030.76,0.00026989,2]
[394943137,1764179440174,-1030.76,0.00026989,2]
[394943138,1764179440183,-1030.76,0.00026989,2]
[394943139,1764179440192,-1030.76,0.00026989,2]
[394943140,1764179440201,-1030.76,0.00026989,2]
[394943141,1764179440210,-1030.76,0.00026989,2]
[394943142,1764179440220,-1030.76,0.00026989,2]
[394943143,1764179440229,-1030.96294402,0.00026989,2]
[394943145,1764179440239,-7999.25362888,0.0002699,2]
[394943147,1764179440251,-72391.16867295,0.0002699,2]
[394943150,1764179440263,-755.06976369,0.0002699,2]
[394943152,1764179440273,-875.18110273,0.0002699,2]
[394943173,1764179440928,-499.455,0.00026069,3]
[394943176,1764179440940,-85.385,0.00026069,3]
[394943178,1764179440949,-412.44512425,0.0002699,2]
[394943222,1764179444879,-1439.23,0.0002619,10]
[394943224,1764179444889,-13482.89619154,0.0002699,2]
[394943309,1764179445719,-4083.98551596,0.0002699,2]
[394943312,1764179445729,-258.0,0.00027,7]
[394943314,1764179445739,-1500.0,0.00027068,2]
[394943316,1764179445751,-1500.0,0.00027068,2]
[394943318,1764179445761,-1500.0,0.00027068,2]
[394943320,1764179445771,-1500.0,0.00027068,2]
[394943323,1764179445782,-5406.42,0.000271,3]
[394943324,1764179445791,-1000.0,0.00027199,3]
[394943326,1764179445800,-5000.0,0.00027224,2]
[394943328,1764179445810,-5230.00226328,0.00027297,2]
[394943329,1764179445820,-11977.7147563,0.00027297,2]
[394943339,1764179446426,-821.16407597,0.00027297,2]
[394943340,1764179446438,-938.75092403,0.00027299,3]
[394943341,1764179446478,-61.24907597,0.00027299,3]
[394943342,1764179446488,-280.75,0.000273,14]
[394943343,1764179446498,-500.0,0.00027373,2]
[394943344,1764179446507,-502.73850431,0.00027397,2]
[394943345,1764179446517,-506.11682648,0.00027397,2]
[394943346,1764179446526,-505.30734982,0.00027397,2]
[394943347,1764179446535,-503.63515254,0.00027397,2]
[394943348,1764179446544,-506.73002617,0.00027397,2]
[394943349,1764179446554,-505.4038469,0.00027397,2]
[394943350,1764179446563,-500.0,0.00027397,2]
[394943351,1764179446572,-461.78659488,0.00027397,2]
[394943352,1764179446582,-7.96399325,0.00027397,2]
[394943353,1764179446595,-201.89946215,0.00027397,2]
[394943354,1764179446606,-297.45666578,0.00027397,2]
[394943355,1764179446619,-509.3368234,0.00027397,2]
[394943356,1764179446628,-286.91585564,0.00027397,2]
[394943357,1764179446638,-500.94528464,0.00027397,2]
[394943360,1764179446648,-634.04125256,0.00027397,2]
[394943361,1764179446657,-439.58937232,0.00027397,2]
[394943362,1764179446667,-519.53804254,0.00027397,2]
[394943363,1764179446676,-512.22370119,0.00027397,2]
[394943364,1764179446688,-500.0,0.00027397,2]
[394943365,1764179446699,-284.82346106,0.00027397,2]
[394943366,1764179446708,-500.0,0.00027397,2]
[394943367,1764179446717,-512.30118754,0.00027397,2]
[394943368,1764179446726,-331.88851665,0.00027397,2]
[394943369,1764179446735,-522.91035199,0.00027397,2]
[394943370,1764179446743,-500.0,0.00027397,2]
[394943371,1764179446755,-516.78818077,0.00027397,2]
[394943372,1764179446764,-550.3839355,0.00027397,2]
[394943373,1764179446773,-477.29588568,0.00027397,2]
[394943374,1764179446783,-500.0,0.00027397,2]
[394943375,1764179446792,-510.65314756,0.00027397,2]
[394943376,1764179446802,-558.55977808,0.00027397,2]
[394943377,1764179446811,-294.78923879,0.00027397,2]
[394943378,1764179446821,-538.37355186,0.00027397,2]
[394943379,1764179446830,-503.62160064,0.00027397,2]
[394943380,1764179446839,-500.0,0.00027397,2]
[394943381,1764179446848,-500.0,0.00027397,2]
[394943382,1764179446857,-500.0,0.00027397,2]
[394943383,1764179446866,-511.23487808,0.00027397,2]
[394943384,1764179446875,-500.0,0.00027397,2]
[394943385,1764179446884,-510.07488277,0.00027397,2]
[394943386,1764179446893,-500.0,0.00027397,2]
[394943387,1764179446902,-500.0,0.00027397,2]
[394943388,1764179446912,-504.21574561,0.00027397,2]
[394943389,1764179446921,-638.1001184,0.00027397,2]
[394943390,1764179446930,-505.38072059,0.00027397,2]
[394943391,1764179446939,-530.2708223,0.00027397,2]
[394943392,1764179446948,-500.0,0.00027397,2]
[394943393,1764179446957,-517.97800405,0.00027397,2]
[394943394,1764179446967,-500.0,0.00027397,2]
[394943395,1764179446975,-500.0,0.00027397,2]
[394943396,1764179446984,-505.48671009,0.00027397,2]
[394943397,1764179446994,-500.10611515,0.00027397,2]
[394943398,1764179447010,-469.72485868,0.00027397,2]
[394943399,1764179447019,-502.04385141,0.00027397,2]
[394943400,1764179447028,-502.37407616,0.00027397,2]
[394943401,1764179447037,-501.55660433,0.00027397,2]
[394943402,1764179447046,-500.5915989,0.00027397,2]
[394943403,1764179447055,-553.31342967,0.00027397,2]
[394943404,1764179447064,-479.51754708,0.00027397,2]
[394943405,1764179447073,-500.20521054,0.00027397,2]
[394943406,1764179447082,-504.30334025,0.00027397,2]
[394943407,1764179447092,-523.39361093,0.00027397,2]
[394943408,1764179447101,-540.19769117,0.00027397,2]
[394943409,1764179447110,-525.6120294,0.00027397,2]
[394943410,1764179447119,-500.0,0.00027397,2]
[394943411,1764179447127,-505.1888398,0.00027397,2]
[394943412,1764179447136,-401.46298606,0.00027397,2]
[394943413,1764179447145,-503.94785709,0.00027397,2]
[394943414,1764179447154,-503.52217079,0.00027397,2]
[394943415,1764179447163,-572.40398442,0.00027397,2]
[394943416,1764179447172,-501.93422736,0.00027397,2]
[394943417,1764179447182,-502.3309003,0.00027397,2]
[394943418,1764179447191,-504.50804435,0.00027397,2]
[394943419,1764179447199,-500.8476113,0.00027397,2]
[394943420,1764179447209,-527.50352659,0.00027397,2]
[394943421,1764179447218,-520.50475033,0.00027397,2]
[394943422,1764179447227,-503.40630707,0.00027397,2]
[394943423,1764179447237,-511.99730478,0.00027397,2]
[394943424,1764179447247,-500.33820009,0.00027397,2]
[394943425,1764179447258,-505.06156257,0.00027397,2]
[394943426,1764179447268,-509.10488331,0.00027397,2]
[394943427,1764179447277,-548.21451221,0.00027397,2]
[394943428,1764179447287,-200.0,0.00027397,2]
[394943429,1764179447297,-505.36386571,0.00027397,2]
[394943430,1764179447307,-547.80109021,0.00027397,2]
[394943431,1764179447316,-501.3841106,0.00027397,2]
[394943432,1764179447327,-504.43312474,0.00027397,2]
[394943433,1764179447338,-502.31001546,0.00027397,2]
[394943434,1764179447348,-506.97395034,0.00027397,2]
[394943435,1764179447359,-504.12943444,0.00027397,2]
[394943436,1764179447370,-504.18245771,0.00027397,2]
[394943437,1764179447380,-509.48607701,0.00027397,2]
[394943438,1764179447390,-503.11186007,0.00027397,2]
[394943439,1764179447400,-503.66064583,0.00027397,2]
[394943440,1764179447410,-501.42422955,0.00027397,2]
[394943441,1764179447419,-501.72037831,0.00027397,2]
[394943442,1764179447428,-504.60285241,0.00027397,2]
[394943443,1764179447438,-503.17811955,0.00027397,2]
[394943444,1764179447448,-509.33496208,0.00027397,2]
[394943445,1764179447458,-522.8329304,0.00027397,2]
[394943446,1764179447468,-502.93869917,0.00027397,2]
[394943447,1764179447477,-509.59434175,0.00027397,2]
[394943448,1764179447487,-500.25352972,0.00027397,2]
[394943449,1764179447496,-502.37012621,0.00027397,2]
[394943450,1764179447507,-501.53990907,0.00027397,2]
[394943451,1764179447516,-504.81292892,0.00027397,2]
[394943452,1764179447525,-502.68604269,0.00027397,2]
[394943453,1764179447536,-503.89220813,0.00027397,2]
[394943454,1764179447547,-510.65709148,0.00027397,2]
[394943455,1764179447557,-506.54062801,0.00027397,2]
[394943456,1764179447567,-502.33140587,0.00027397,2]
[394943457,1764179447577,-521.93257553,0.00027397,2]
[394943458,1764179447586,-505.24451662,0.00027397,2]
[394943459,1764179447596,-505.60785758,0.00027397,2]
[394943460,1764179447612,-507.30331488,0.00027397,2]
[394943461,1764179447622,-525.24102262,0.00027397,2]
[394943462,1764179447632,-502.14482775,0.00027397,2]
[394943463,1764179447641,-505.38161238,0.00027397,2]
[394943464,1764179447654,-542.02934675,0.00027397,2]
[394943465,1764179447664,-500.0,0.00027397,2]
[394943466,1764179447674,-501.85157155,0.00027397,2]
[394943467,1764179447685,-508.94353731,0.00027397,2]
[394943468,1764179447695,-510.01914661,0.00027397,2]
[394943469,1764179447704,-500.09,0.00027397,2]
[394943470,1764179447714,-500.0,0.00027397,2]
[394943471,1764179447723,-500.0,0.00027397,2]
[394943472,1764179447733,-500.0,0.00027397,2]
[394943473,1764179447743,-500.0,0.00027397,2]
[394943474,1764179447753,-500.0,0.00027397,2]
[394943475,1764179447762,-500.0,0.00027397,2]
[394943476,1764179447771,-500.0,0.00027397,2]
[394943477,1764179447781,-500.0,0.00027397,2]
[394943478,1764179447791,-500.0,0.00027397,2]
[394943479,1764179447801,-500.0,0.00027397,2]
[394943480,1764179447811,-500.0,0.00027397,2]
[394943481,1764179447821,-500.0,0.00027397,2]
[394943482,1764179447832,-500.0,0.00027397,2]
[394943483,1764179447842,-500.0,0.00027397,2]
[394943484,1764179447852,-500.0,0.00027397,2]
[394943485,1764179447864,-500.0,0.00027397,2]
[394943486,1764179447873,-500.0,0.00027397,2]
[394943487,1764179447882,-609.26,0.00027397,2]
[394943488,1764179447892,-500.0,0.00027397,2]
[394943489,1764179447901,-500.0,0.00027397,2]
[394943490,1764179447910,-500.0,0.00027397,2]
[394943491,1764179447919,-500.0,0.00027397,2]
[394943492,1764179447932,-500.0,0.00027397,2]
[394943493,1764179447941,-500.0,0.00027397,2]
[394943494,1764179447951,-500.0,0.00027397,2]
[394943495,1764179447960,-509.03120995,0.00027397,2]
[394943496,1764179447969,-500.0,0.00027397,2]
[394943497,1764179447978,-505.9835337,0.00027397,2]
[394943498,1764179447988,-500.0,0.00027397,2]
[394943499,1764179447998,-584.69345396,0.00027397,2]
[394943500,1764179448007,-504.47436371,0.00027397,2]
[394943501,1764179448016,-500.0,0.00027397,2]
[394943502,1764179448026,-508.26591482,0.00027397,2]
[394943503,1764179448035,-153.02463976,0.00027397,2]
[394943504,1764179448044,-500.0,0.00027397,2]
[394943505,1764179448054,-516.46154205,0.00027397,2]
[394943506,1764179448063,-500.0,0.00027397,2]
[394943507,1764179448072,-510.56737973,0.00027397,2]
[394943508,1764179448082,-518.1872654,0.00027397,2]
[394943509,1764179448091,-483.4626899,0.00027397,2]
[394943510,1764179448100,-519.04881015,0.00027397,2]
[394943511,1764179448109,-516.62871915,0.00027397,2]
[394943512,1764179448118,-500.0,0.00027397,2]
[394943513,1764179448127,-509.30790492,0.00027397,2]
[394943514,1764179448137,-501.1963846,0.00027397,2]
[394943515,1764179448146,-500.0,0.00027397,2]
[394943516,1764179448155,-500.0,0.00027397,2]
[394943517,1764179448164,-500.0,0.00027397,2]
[394943518,1764179448173,-531.03579433,0.00027397,2]
[394943519,1764179448182,-500.0,0.00027397,2]
[394943520,1764179448192,-543.0693552,0.00027397,2]
[394943521,1764179448201,-500.0,0.00027397,2]
[394943522,1764179448211,-514.29058136,0.00027397,2]
[394943523,1764179448220,-540.11444224,0.00027397,2]
[394943524,1764179448229,-500.65900547,0.00027397,2]
[394943525,1764179448239,-521.92524185,0.00027397,2]
[394943526,1764179448249,-507.98818207,0.00027397,2]
[394943527,1764179448258,-500.0,0.00027397,2]
[394943528,1764179448268,-525.73043561,0.00027397,2]
[394943529,1764179448277,-559.04763715,0.00027397,2]
[394943530,1764179448286,-509.35289896,0.00027397,2]
[394943531,1764179448295,-500.0,0.00027397,2]
[394943532,1764179448304,-571.55364668,0.00027397,2]
[394943533,1764179448313,-619.70942195,0.00027397,2]
[394943534,1764179448322,-202.86286956,0.00027397,2]
[394943535,1764179448331,-509.63362283,0.00027397,2]
[394943536,1764179448341,-563.29591581,0.00027397,2]
[394943537,1764179448350,-500.0,0.00027397,2]
[394943538,1764179448359,-519.78775634,0.00027397,2]
[394943539,1764179448368,-500.0,0.00027397,2]
[394943540,1764179448377,-531.14319833,0.00027397,2]
[394943541,1764179448390,-506.78210132,0.00027397,2]
[394943542,1764179448403,-312.5207043,0.00027397,2]
[394943543,1764179448411,-198.63517515,0.00027397,2]
[394943544,1764179448421,-512.6808035,0.00027397,2]
[394943545,1764179448430,-500.0,0.00027397,2]
[394943546,1764179448439,-501.40509045,0.00027397,2]
[394943547,1764179448448,-430.84686414,0.00027397,2]
[394943548,1764179448457,-500.0,0.00027397,2]
[394943549,1764179448466,-500.0,0.00027397,2]
[394943550,1764179448475,-542.24,0.00027397,2]
[394943551,1764179448484,-500.0,0.00027397,2]
[394943552,1764179448493,-500.0,0.00027397,2]
[394943553,1764179448503,-506.01109181,0.00027397,2]
[394943554,1764179448512,-500.0,0.00027397,2]
[394943555,1764179448522,-512.16868091,0.00027397,2]
[394943556,1764179448531,-500.0,0.00027397,2]
[394943557,1764179448540,-569.61515488,0.00027397,2]
[394943558,1764179448550,-507.7773763,0.00027397,2]
[394943559,1764179448560,-167.0599479,0.00027397,2]
[394943560,1764179448569,-519.69561693,0.00027397,2]
[394943561,1764179448579,-500.0,0.00027397,2]
[394943562,1764179448589,-500.0,0.00027397,2]
[394943563,1764179448598,-513.03445665,0.00027397,2]
[394943564,1764179448610,-500.0,0.00027397,2]
[394943565,1764179448621,-500.0,0.00027397,2]
[394943566,1764179448630,-500.0,0.00027397,2]
[394943567,1764179448640,-500.0,0.00027397,2]
[394943568,1764179448650,-328.85705123,0.00027397,2]
[394943569,1764179448659,-500.0,0.00027397,2]
[394943570,1764179448668,-500.0,0.00027397,2]
[394943571,1764179448678,-500.0,0.00027397,2]
[394943572,1764179448688,-692.42,0.00027397,2]
[394943573,1764179448697,-500.0,0.00027397,2]
[394943574,1764179448706,-500.0,0.00027397,2]
[394943575,1764179448715,-425.16859548,0.00027397,2]
[394943576,1764179448725,-500.0,0.00027397,2]
[394943577,1764179448735,-500.0,0.00027397,2]
[394943578,1764179448745,-500.0,0.00027397,2]
[394943579,1764179448755,-500.0,0.00027397,2]
[394943580,1764179448764,-500.0,0.00027397,2]
[394943581,1764179448773,-443.3230774,0.00027397,2]
[394943582,1764179448783,-513.29644685,0.00027397,2]
[394943583,1764179448792,-500.0,0.00027397,2]
[394943584,1764179448801,-500.0,0.00027397,2]
[394943585,1764179448810,-532.32672176,0.00027397,2]
[394943586,1764179448819,-500.0,0.00027397,2]
[394943587,1764179448829,-500.0,0.00027397,2]
[394943588,1764179448837,-500.0,0.00027397,2]
[394943589,1764179448846,-650.61,0.00027397,2]
[394943590,1764179448858,-500.0,0.00027397,2]
[394943591,1764179448867,-500.0,0.00027397,2]
[394943592,1764179448878,-500.0,0.00027397,2]
[394943593,1764179448888,-500.0,0.00027397,2]
[394943594,1764179448898,-500.0,0.00027397,2]
[394943595,1764179448907,-592.59230265,0.00027397,2]
[394943596,1764179448917,-500.0,0.00027397,2]
[394943597,1764179448926,-500.0,0.00027397,2]
[394943598,1764179448935,-559.42,0.00027397,2]
[394943599,1764179448944,-515.28612076,0.00027397,2]
[394943600,1764179448953,-500.0,0.00027397,2]
[394943601,1764179448962,-500.0,0.00027397,2]
[394943602,1764179448972,-570.44,0.00027397,2]
[394943603,1764179448981,-500.0,0.00027397,2]
[394943604,1764179448990,-620.2,0.00027397,2]
[394943605,1764179449000,-500.0,0.00027397,2]
[394943606,1764179449009,-500.0,0.00027397,2]
[394943607,1764179449021,-500.0,0.00027397,2]
[394943608,1764179449030,-500.0,0.00027397,2]
[394943609,1764179449039,-500.0,0.00027397,2]
[394943610,1764179449048,-500.0,0.00027397,2]
[394943611,1764179449058,-500.0,0.00027397,2]
[394943612,1764179449067,-2239.4,0.00027397,2]
[394943613,1764179449077,-524.54578571,0.00027397,2]
[394943614,1764179449086,-500.0,0.00027397,2]
[394943615,1764179449095,-500.0,0.00027397,2]
[394943616,1764179449105,-500.0,0.00027397,2]
[394943617,1764179449115,-514.58132288,0.00027397,2]
[394943618,1764179449124,-500.0,0.00027397,2]
[394943619,1764179449133,-456.67297181,0.00027397,2]
[394943620,1764179449142,-500.0,0.00027397,2]
[394943621,1764179449152,-500.0,0.00027397,2]
[394943622,1764179449162,-500.0,0.00027397,2]
[394943623,1764179449171,-500.0,0.00027397,2]
[394943624,1764179449180,-2492.79,0.00027397,2]
[394943625,1764179449189,-500.0,0.00027397,2]
[394943626,1764179449199,-509.46414649,0.00027397,2]
[394943627,1764179449208,-500.0,0.00027397,2]
[394943628,1764179449218,-500.0,0.00027397,2]
[394943629,1764179449229,-500.0,0.00027397,2]
[394943630,1764179449238,-514.24752624,0.00027397,2]
[394943631,1764179449246,-500.0,0.00027397,2]
[394943632,1764179449256,-258.10775351,0.00027397,2]
[394943633,1764179449266,-500.0,0.00027397,2]
[394943634,1764179449274,-559.80023611,0.00027397,2]
[394943635,1764179449283,-532.98,0.00027397,2]
[394943636,1764179449292,-500.0,0.00027397,2]
[394943637,1764179449301,-514.76502245,0.00027397,2]
[394943638,1764179449310,-500.0,0.00027397,2]
[394943639,1764179449448,-500.0,0.00027397,2]
[394943640,1764179449459,-500.0,0.00027397,2]
[394943641,1764179449468,-500.0,0.00027397,2]
[394943642,1764179449478,-500.0,0.00027397,2]
[394943643,1764179449487,-500.0,0.00027397,2]
[394943644,1764179449496,-508.3902964,0.00027397,2]
[394943645,1764179449505,-500.0,0.00027397,2]
[394943646,1764179449515,-500.0,0.00027397,2]
[394943647,1764179449524,-1053.9,0.00027397,2]
[394943648,1764179449533,-538.30290384,0.00027397,2]
[394943649,1764179449543,-500.0,0.00027397,2]
[394943650,1764179449553,-500.0,0.00027397,2]
[394943651,1764179449563,-500.0,0.00027397,2]
[394943652,1764179449572,-500.0,0.00027397,2]
[394943653,1764179449582,-500.0,0.00027397,2]
[394943654,1764179449591,-522.00641225,0.00027397,2]
[394943655,1764179449600,-500.0,0.00027397,2]
[394943656,1764179449612,-500.0,0.00027397,2]
[394943657,1764179449622,-500.0,0.00027397,2]
[394943658,1764179449631,-500.0,0.00027397,2]
[394943659,1764179449640,-573.34667387,0.00027397,2]
[394943660,1764179449651,-505.72362788,0.00027397,2]
[394943661,1764179449660,-509.99079001,0.00027397,2]
[394943662,1764179449669,-507.96952422,0.00027397,2]
[394943663,1764179449679,-527.92,0.00027397,2]
[394943664,1764179449691,-503.07117514,0.00027397,2]
[394943665,1764179449700,-468.70579082,0.00027397,2]
[394943666,1764179449710,-574.26,0.00027397,2]
[394943667,1764179449719,-271.87883781,0.00027397,2]
[394943668,1764179449728,-500.0,0.00027397,2]
[394943669,1764179449738,-500.0,0.00027397,2]
[394943670,1764179449748,-504.50179468,0.00027397,2]
[394943671,1764179449759,-500.0,0.00027397,2]
[394943672,1764179449767,-344.1572768,0.00027397,2]
[394943673,1764179449777,-518.87,0.00027397,2]
[394943674,1764179449787,-528.96971152,0.00027397,2]
[394943675,1764179449796,-506.37196621,0.00027397,2]
[394943676,1764179449806,-391.96992042,0.00027397,2]
[394943677,1764179449816,-574.26330673,0.00027397,2]
[394943678,1764179449825,-500.54083625,0.00027397,2]
[394943679,1764179449835,-512.15707316,0.00027397,2]
[394943680,1764179449844,-500.0,0.00027397,2]
[394943681,1764179449854,-453.54877539,0.00027397,2]
[394943682,1764179449864,-1108.99,0.00027397,2]
[394943683,1764179449873,-509.79392139,0.00027397,2]
[394943684,1764179449883,-500.0,0.00027397,2]
[394943685,1764179449892,-540.2606941,0.00027397,2]
[394943686,1764179449901,-505.88605912,0.00027397,2]
[394943687,1764179449911,-505.73335077,0.00027397,2]
[394943688,1764179449922,-502.07392581,0.00027397,2]
[394943689,1764179449931,-394.76641484,0.00027397,2]
[394943690,1764179449940,-500.0,0.00027397,2]
[394943691,1764179449949,-501.62698427,0.00027397,2]
[394943692,1764179449958,-623.47520506,0.00027397,2]
[394943693,1764179449967,-971.36,0.00027397,2]
[394943694,1764179449977,-500.10866484,0.00027397,2]
[394943695,1764179449986,-502.74382688,0.00027397,2]
[394943696,1764179449995,-500.0,0.00027397,2]
[394943697,1764179450008,-188.41794506,0.00027397,2]
[394943698,1764179450017,-520.25597475,0.00027397,2]
[394943699,1764179450028,-410.98342203,0.00027397,2]
[394943700,1764179450038,-897.95,0.00027397,2]
[394943701,1764179450046,-515.67,0.00027397,2]
[394943702,1764179450055,-576.00201575,0.00027397,2]
[394943703,1764179450066,-221.44653158,0.00027397,2]
[394943704,1764179450075,-316.56905852,0.00027397,2]
[394943705,1764179450085,-714.7,0.00027397,2]
[394943706,1764179450095,-503.04021886,0.00027397,2]
[394943707,1764179450105,-500.0,0.00027397,2]
[394943708,1764179450114,-500.0,0.00027397,2]
[394943709,1764179450123,-151.0,0.00027397,7]
[394943710,1764179450132,-151.0,0.00027397,7]
[394943711,1764179450141,-505.03123549,0.00027397,2]
[394943712,1764179450150,-505.47062885,0.00027397,2]
[394943713,1764179450159,-500.0,0.00027397,2]
[394943714,1764179450168,-500.0,0.00027397,2]
[394943715,1764179450177,-283.447,0.00027397,2]
[394943716,1764179450186,-500.0,0.00027397,2]
[394943717,1764179450195,-484.30231242,0.00027397,2]
[394943718,1764179450204,-500.0,0.00027397,2]
[394943719,1764179450213,-158.518951,0.00027397,7]
[394943720,1764179450222,-151.0,0.00027397,7]
[394943721,1764179450232,-151.0,0.00027397,7]
[394943722,1764179450241,-163.194438,0.00027397,7]
[394943723,1764179450250,-151.0,0.00027397,7]
[394943724,1764179450260,-151.0,0.00027397,7]
[394943725,1764179450269,-151.0,0.00027397,7]
[394943726,1764179450279,-151.0,0.00027397,7]
[394943727,1764179450288,-151.0,0.00027397,7]
[394943728,1764179450297,-151.0,0.00027397,7]
[394943729,1764179450306,-151.0,0.00027397,7]
[394943730,1764179450315,-151.0,0.00027397,7]
[394943731,1764179450324,-151.0,0.00027397,7]
[394943732,1764179450333,-151.0,0.00027397,7]
[394943733,1764179450341,-151.0,0.00027397,7]
[394943734,1764179450350,-151.0,0.00027397,7]
[394943735,1764179450359,-254.2461,0.00027397,7]
[394943736,1764179450368,-151.0,0.00027397,7]
[394943737,1764179450377,-151.0,0.00027397,7]
[394943738,1764179450385,-151.0,0.00027397,7]